[Event "Titled Tuesday Blitz December 7 2021"]
[White "Grineva, Marianna"]
[Black "Najdin, Danil"]
[WhiteFideId "14102013"]
[BlackFideId "4172426"]
[WhiteElo "1953"]
[BlackElo "2240"]
[Result "0-1"]
[Round "09"]
[TimeControl "180+1"]
[Date "2021.12.07"]
[WhiteClock "0:00:10"]
[BlackClock "0:00:37"]

1. e4 {[%clk 0:03:00]}  g6 {[%clk 0:02:57]} 2. d4 {[%clk 0:03:00]}  c6 {[%clk 0:02:57]} 3. Nc3 {[%clk 0:02:53]}  d5 {[%clk 0:02:56]} 4. e5 {[%clk 0:02:53]}  Bg7 {[%clk 0:02:55]} 5. h3 {[%clk 0:02:53]}  h5 {[%clk 0:02:54]} 6. Bd3 {[%clk 0:02:49]}  Nh6 {[%clk 0:02:53]} 7. Nge2 {[%clk 0:02:44]}  Bf5 {[%clk 0:02:52]} 8. Ng3 {[%clk 0:02:39]}  Bxd3 {[%clk 0:02:43]} 9. Qxd3 {[%clk 0:02:40]}  e6 {[%clk 0:02:39]} 10. h4 {[%clk 0:02:29]}  Nd7 {[%clk 0:02:32]} 11. Bg5 {[%clk 0:02:28]}  Qb6 {[%clk 0:02:32]} 12. O-O-O {[%clk 0:02:28]}  Nf5 {[%clk 0:02:25]} 13. Nxf5 {[%clk 0:02:27]}  gxf5 {[%clk 0:02:24]} 14. f3 {[%clk 0:02:25]}  Bh6 {[%clk 0:02:05]} 15. g4 {[%clk 0:02:18]}  fxg4 {[%clk 0:02:00]} 16. fxg4 {[%clk 0:02:19]}  Bxg5+ {[%clk 0:01:51]} 17. hxg5 {[%clk 0:02:18]}  Qd8 {[%clk 0:01:41]} 18. Qe3 {[%clk 0:02:07]}  h4 {[%clk 0:01:41]} 19. Rd2 {[%clk 0:01:57]}  Nf8 {[%clk 0:01:39]} 20. Rdh2 {[%clk 0:01:57]}  Ng6 {[%clk 0:01:39]} 21. Rf1 {[%clk 0:01:54]}  Qe7 {[%clk 0:01:38]} 22. Rf6 {[%clk 0:01:51]}  O-O-O {[%clk 0:01:35]} 23. Ne2 {[%clk 0:01:51]}  Rdg8 {[%clk 0:01:29]} 24. Nf4 {[%clk 0:01:50]}  Nf8 {[%clk 0:01:15]} 25. Nh5 {[%clk 0:01:41]}  Nd7 {[%clk 0:01:15]} 26. Rxh4 {[%clk 0:01:27]}  Nxf6 {[%clk 0:01:14]} 27. gxf6 {[%clk 0:01:25]}  Qf8 {[%clk 0:01:15]} 28. g5 {[%clk 0:01:24]}  Rh7 {[%clk 0:01:10]} 29. Qf4 {[%clk 0:01:08]}  Rg6 {[%clk 0:01:07]} 30. Ng7 {[%clk 0:01:04]}  Qh8 {[%clk 0:01:08]} 31. Rg4 {[%clk 0:00:38]}  Rh1+ {[%clk 0:01:06]} 32. Kd2 {[%clk 0:00:38]}  Qh3 {[%clk 0:01:01]} 33. b3 {[%clk 0:00:33]}  Rh2+ {[%clk 0:00:47]} 34. Kc1 {[%clk 0:00:28]}  Re2 {[%clk 0:00:42]} 35. Nxe6 {[%clk 0:00:18]}  Qc3 {[%clk 0:00:38]} 36. Qf5 {[%clk 0:00:10]}  Re1# {[%clk 0:00:37]} 0-1


[Site "https://www.chess.com"]

[Event "Titled Tuesday Blitz December 7 2021"]
[White "Guliev, Logman"]
[Black "Osmonbekov, Talaibek"]
[WhiteFideId "13400061"]
[BlackFideId "2017253"]
[WhiteElo "2128"]
[BlackElo "2135"]
[Result "1-0"]
[Round "09"]
[TimeControl "180+1"]
[Date "2021.12.07"]
[WhiteClock "0:01:34"]
[BlackClock "0:00:18"]

1. c4 {[%clk 0:03:00]}  e5 {[%clk 0:02:58]} 2. Nc3 {[%clk 0:03:00]}  d6 {[%clk 0:02:58]} 3. g3 {[%clk 0:02:59]}  f5 {[%clk 0:02:58]} 4. Bg2 {[%clk 0:03:00]}  Nf6 {[%clk 0:02:59]} 5. e3 {[%clk 0:03:00]}  Be7 {[%clk 0:03:00]} 6. Nge2 {[%clk 0:03:00]}  O-O {[%clk 0:03:00]} 7. O-O {[%clk 0:03:01]}  Kh8 {[%clk 0:02:59]} 8. d3 {[%clk 0:03:01]}  Qe8 {[%clk 0:02:57]} 9. b4 {[%clk 0:03:01]}  Qh5 {[%clk 0:02:52]} 10. Nd5 {[%clk 0:03:00]}  Bd8 {[%clk 0:02:51]} 11. Nec3 {[%clk 0:02:56]}  Qg6 {[%clk 0:02:48]} 12. b5 {[%clk 0:02:43]}  Nbd7 {[%clk 0:02:47]} 13. d4 {[%clk 0:02:39]}  e4 {[%clk 0:02:39]} 14. Nf4 {[%clk 0:02:36]}  Qf7 {[%clk 0:02:38]} 15. Bb2 {[%clk 0:02:36]}  Nb6 {[%clk 0:02:09]} 16. c5 {[%clk 0:02:33]}  Nc4 {[%clk 0:02:09]} 17. Bc1 {[%clk 0:02:26]}  g5 {[%clk 0:02:06]} 18. Nfe2 {[%clk 0:02:22]}  d5 {[%clk 0:02:02]} 19. Qb3 {[%clk 0:02:12]}  Be6 {[%clk 0:01:58]} 20. a4 {[%clk 0:02:08]}  Qh5 {[%clk 0:01:43]} 21. h3 {[%clk 0:02:04]}  Rg8 {[%clk 0:01:34]} 22. f3 {[%clk 0:01:54]}  exf3 {[%clk 0:01:15]} 23. Rxf3 {[%clk 0:01:52]}  Ne4 {[%clk 0:01:15]} 24. Nxe4 {[%clk 0:01:42]}  fxe4 {[%clk 0:01:15]} 25. Rf2 {[%clk 0:01:42]}  Bxh3 {[%clk 0:01:12]} 26. Bxe4 {[%clk 0:01:41]}  dxe4 {[%clk 0:00:42]} 27. Qxc4 {[%clk 0:01:41]}  Bg4 {[%clk 0:00:40]} 28. d5 {[%clk 0:01:40]}  Re8 {[%clk 0:00:19]} 29. Bb2+ {[%clk 0:01:38]}  Kg8 {[%clk 0:00:19]} 30. d6+ {[%clk 0:01:34]}  Be6 {[%clk 0:00:18]} 31. Qd4 {[%clk 0:01:34]} 1-0


[Site "https://www.chess.com"]

[Event "Titled Tuesday Blitz December 7 2021"]
[White "Hakemi, Arman"]
[Black "Silva, Miguel Antonio Neto"]
[WhiteFideId "22520805"]
[BlackFideId "1911929"]
[WhiteElo "2208"]
[BlackElo "2204"]
[Result "1-0"]
[Round "09"]
[TimeControl "180+1"]
[Date "2021.12.07"]
[WhiteClock "0:00:35"]
[BlackClock "0:00:05"]

1. e4 {[%clk 0:03:00]}  c5 {[%clk 0:02:40]} 2. Nf3 {[%clk 0:02:59]}  d6 {[%clk 0:02:40]} 3. Bb5+ {[%clk 0:03:00]}  Nd7 {[%clk 0:02:39]} 4. c3 {[%clk 0:02:59]}  Nf6 {[%clk 0:02:39]} 5. Qe2 {[%clk 0:02:59]}  e5 {[%clk 0:02:35]} 6. O-O {[%clk 0:02:58]}  Be7 {[%clk 0:02:34]} 7. d4 {[%clk 0:02:58]}  O-O {[%clk 0:02:32]} 8. Rd1 {[%clk 0:02:59]}  Qc7 {[%clk 0:02:31]} 9. d5 {[%clk 0:02:57]}  a6 {[%clk 0:02:29]} 10. Ba4 {[%clk 0:02:57]}  b5 {[%clk 0:02:28]} 11. Bc2 {[%clk 0:02:58]}  c4 {[%clk 0:02:26]} 12. b3 {[%clk 0:02:55]}  cxb3 {[%clk 0:02:23]} 13. axb3 {[%clk 0:02:56]}  Re8 {[%clk 0:02:20]} 14. Bd3 {[%clk 0:02:55]}  Bb7 {[%clk 0:02:18]} 15. Bb2 {[%clk 0:02:42]}  Bf8 {[%clk 0:02:16]} 16. Nbd2 {[%clk 0:02:40]}  g6 {[%clk 0:02:15]} 17. b4 {[%clk 0:02:37]}  Nb6 {[%clk 0:02:13]} 18. Ra5 {[%clk 0:02:34]}  Na4 {[%clk 0:02:11]} 19. Nf1 {[%clk 0:02:20]}  Rec8 {[%clk 0:02:03]} 20. Rc1 {[%clk 0:02:16]}  Bh6 {[%clk 0:01:36]} 21. Ne3 {[%clk 0:02:12]}  Bxe3 {[%clk 0:01:23]} 22. fxe3 {[%clk 0:02:13]}  Nxb2 {[%clk 0:01:21]} 23. Qxb2 {[%clk 0:02:13]}  Qb6 {[%clk 0:01:21]} 24. Qd2 {[%clk 0:02:06]}  Rc7 {[%clk 0:01:19]} 25. h3 {[%clk 0:02:03]}  Rac8 {[%clk 0:01:18]} 26. Ra3 {[%clk 0:02:04]}  Nh5 {[%clk 0:01:10]} 27. Kh2 {[%clk 0:02:01]}  h6 {[%clk 0:01:09]} 28. g4 {[%clk 0:02:01]}  Nf6 {[%clk 0:01:08]} 29. Rf1 {[%clk 0:02:00]}  Kg7 {[%clk 0:01:07]} 30. Nh4 {[%clk 0:01:55]}  Rc4 {[%clk 0:01:03]} 31. Bxc4 {[%clk 0:01:53]}  Rxc4 {[%clk 0:01:03]} 32. Qf2 {[%clk 0:01:53]}  Qd8 {[%clk 0:01:02]} 33. Ra2 {[%clk 0:01:36]}  Qe7 {[%clk 0:01:02]} 34. Qe1 {[%clk 0:01:31]}  Rxe4 {[%clk 0:00:58]} 35. Raf2 {[%clk 0:01:29]}  Nxd5 {[%clk 0:00:48]} 36. Rxf7+ {[%clk 0:01:28]}  Qxf7 {[%clk 0:00:49]} 37. Rxf7+ {[%clk 0:01:29]}  Kxf7 {[%clk 0:00:49]} 38. Ng2 {[%clk 0:01:30]}  Rc4 {[%clk 0:00:47]} 39. Qd2 {[%clk 0:01:21]}  Ke6 {[%clk 0:00:44]} 40. Qf2 {[%clk 0:01:19]}  Rxc3 {[%clk 0:00:40]} 41. Qf8 {[%clk 0:01:19]}  Ne7 {[%clk 0:00:39]} 42. Kg3 {[%clk 0:01:07]}  Bxg2 {[%clk 0:00:34]} 43. Kxg2 {[%clk 0:01:08]}  Rxe3 {[%clk 0:00:34]} 44. Qa8 {[%clk 0:01:06]}  Rb3 {[%clk 0:00:34]} 45. Qxa6 {[%clk 0:01:04]}  Rxb4 {[%clk 0:00:33]} 46. Qa5 {[%clk 0:01:04]}  Rb2+ {[%clk 0:00:30]} 47. Kg3 {[%clk 0:01:04]}  Nc6 {[%clk 0:00:31]} 48. Qa3 {[%clk 0:01:03]}  Rd2 {[%clk 0:00:19]} 49. Qb3+ {[%clk 0:01:03]}  Rd5 {[%clk 0:00:18]} 50. h4 {[%clk 0:01:04]}  Nd4 {[%clk 0:00:18]} 51. Qa2 {[%clk 0:01:04]}  b4 {[%clk 0:00:18]} 52. Qc4 {[%clk 0:01:00]}  b3 {[%clk 0:00:18]} 53. Qc7 {[%clk 0:01:00]}  Rb5 {[%clk 0:00:16]} 54. Qc8+ {[%clk 0:00:59]}  Kd5 {[%clk 0:00:16]} 55. Qg8+ {[%clk 0:00:59]}  Kc5 {[%clk 0:00:17]} 56. Qc8+ {[%clk 0:00:55]}  Kb4 {[%clk 0:00:16]} 57. Qf8 {[%clk 0:00:46]}  b2 {[%clk 0:00:15]} 58. Qxd6+ {[%clk 0:00:47]}  Kb3 {[%clk 0:00:15]} 59. Qxg6 {[%clk 0:00:44]}  Kc3 {[%clk 0:00:12]} 60. Qb1 {[%clk 0:00:41]}  Ra5 {[%clk 0:00:12]} 61. Qe1+ {[%clk 0:00:40]}  Kc2 {[%clk 0:00:10]} 62. Qxa5 {[%clk 0:00:40]}  b1=Q {[%clk 0:00:10]} 63. Qxe5 {[%clk 0:00:38]}  Qg1+ {[%clk 0:00:10]} 64. Kh3 {[%clk 0:00:38]}  Qf1+ {[%clk 0:00:06]} 65. Kg3 {[%clk 0:00:36]}  Ne2+ {[%clk 0:00:06]} 66. Kh2 {[%clk 0:00:36]}  Qf2+ {[%clk 0:00:06]} 67. Kh3 {[%clk 0:00:36]}  Qg3+ {[%clk 0:00:05]} 68. Qxg3 {[%clk 0:00:35]} 1-0


[Site "https://www.chess.com"]

[Event "Titled Tuesday Blitz December 7 2021"]
[White "Halkias, Stelios"]
[Black "Pacheco Lugo, Alejandro Jose"]
[WhiteFideId "4201809"]
[BlackFideId "3903745"]
[WhiteElo "2575"]
[BlackElo "2125"]
[Result "1-0"]
[Round "09"]
[TimeControl "180+1"]
[Date "2021.12.07"]
[WhiteClock "0:00:47"]
[BlackClock "0:00:09"]

1. d4 {[%clk 0:02:20]}  Nf6 {[%clk 0:02:29]} 2. c4 {[%clk 0:02:20]}  e6 {[%clk 0:02:29]} 3. Nc3 {[%clk 0:02:19]}  Bb4 {[%clk 0:02:29]} 4. e3 {[%clk 0:02:19]}  O-O {[%clk 0:02:28]} 5. Bd2 {[%clk 0:02:17]}  d5 {[%clk 0:02:26]} 6. Nf3 {[%clk 0:02:16]}  b6 {[%clk 0:02:25]} 7. cxd5 {[%clk 0:02:15]}  exd5 {[%clk 0:02:25]} 8. Rc1 {[%clk 0:02:13]}  a6 {[%clk 0:02:23]} 9. Bd3 {[%clk 0:02:13]}  Bb7 {[%clk 0:02:22]} 10. O-O {[%clk 0:02:12]}  Re8 {[%clk 0:02:21]} 11. Ne5 {[%clk 0:02:12]}  c5 {[%clk 0:02:20]} 12. f4 {[%clk 0:02:02]}  Nc6 {[%clk 0:02:02]} 13. a3 {[%clk 0:01:54]}  Ba5 {[%clk 0:01:53]} 14. Be1 {[%clk 0:01:48]}  cxd4 {[%clk 0:01:50]} 15. exd4 {[%clk 0:01:48]}  Nxd4 {[%clk 0:01:37]} 16. b4 {[%clk 0:01:45]}  Ne4 {[%clk 0:01:12]} 17. Nxe4 {[%clk 0:01:30]}  dxe4 {[%clk 0:01:13]} 18. Bc4 {[%clk 0:01:30]}  Rf8 {[%clk 0:00:14]} 19. bxa5 {[%clk 0:01:28]}  b5 {[%clk 0:00:11]} 20. Bf2 {[%clk 0:01:13]}  e3 {[%clk 0:00:11]} 21. Bxe3 {[%clk 0:00:52]}  Nf5 {[%clk 0:00:11]} 22. Bxf7+ {[%clk 0:00:49]}  Rxf7 {[%clk 0:00:10]} 23. Qxd8+ {[%clk 0:00:49]}  Rxd8 {[%clk 0:00:10]} 24. Nxf7 {[%clk 0:00:49]}  Kf8 {[%clk 0:00:09]} 25. Bf2 {[%clk 0:00:47]} 1-0


[Site "https://www.chess.com"]

[Event "Titled Tuesday Blitz December 7 2021"]
[White "Dronavalli, Harika"]
[Black "Cvetanovic, Uros"]
[WhiteFideId "5015197"]
[BlackFideId "900672"]
[WhiteElo "2382"]
[BlackElo "2282"]
[Result "1-0"]
[Round "09"]
[TimeControl "180+1"]
[Date "2021.12.07"]
[WhiteClock "0:01:06"]
[BlackClock "0:00:10"]

1. Nf3 {[%clk 0:03:00]}  Nf6 {[%clk 0:02:56]} 2. c4 {[%clk 0:03:01]}  e6 {[%clk 0:02:56]} 3. g3 {[%clk 0:03:02]}  d5 {[%clk 0:02:56]} 4. b3 {[%clk 0:02:59]}  Be7 {[%clk 0:02:53]} 5. Bg2 {[%clk 0:02:59]}  O-O {[%clk 0:02:53]} 6. O-O {[%clk 0:02:59]}  c6 {[%clk 0:02:53]} 7. Bb2 {[%clk 0:02:59]}  Nbd7 {[%clk 0:02:50]} 8. d4 {[%clk 0:02:59]}  dxc4 {[%clk 0:02:40]} 9. bxc4 {[%clk 0:02:58]}  c5 {[%clk 0:02:40]} 10. e3 {[%clk 0:02:45]}  Nb6 {[%clk 0:02:38]} 11. Nbd2 {[%clk 0:02:45]}  Qc7 {[%clk 0:02:24]} 12. Qb3 {[%clk 0:02:32]}  Rd8 {[%clk 0:02:19]} 13. a4 {[%clk 0:02:30]}  Nbd7 {[%clk 0:01:51]} 14. a5 {[%clk 0:02:26]}  Rb8 {[%clk 0:01:50]} 15. Rfc1 {[%clk 0:02:15]}  b6 {[%clk 0:01:45]} 16. axb6 {[%clk 0:02:14]}  Nxb6 {[%clk 0:01:45]} 17. Qa2 {[%clk 0:02:03]}  Bb7 {[%clk 0:01:41]} 18. Nb3 {[%clk 0:01:56]}  Nfd7 {[%clk 0:01:13]} 19. Na5 {[%clk 0:01:45]}  Ba8 {[%clk 0:01:10]} 20. Bc3 {[%clk 0:01:43]}  Bf6 {[%clk 0:01:07]} 21. Rab1 {[%clk 0:01:42]}  cxd4 {[%clk 0:00:59]} 22. exd4 {[%clk 0:01:40]}  Bxf3 {[%clk 0:00:58]} 23. Bxf3 {[%clk 0:01:39]}  Nf8 {[%clk 0:00:53]} 24. Nc6 {[%clk 0:01:37]}  Rbc8 {[%clk 0:00:50]} 25. Nxd8 {[%clk 0:01:36]}  Rxd8 {[%clk 0:00:51]} 26. c5 {[%clk 0:01:33]}  Nd5 {[%clk 0:00:48]} 27. Ba5 {[%clk 0:01:33]}  Qd7 {[%clk 0:00:41]} 28. Bxd8 {[%clk 0:01:33]}  Qxd8 {[%clk 0:00:42]} 29. Bxd5 {[%clk 0:01:34]}  exd5 {[%clk 0:00:42]} 30. Qxa7 {[%clk 0:01:33]}  Bxd4 {[%clk 0:00:40]} 31. Qa2 {[%clk 0:01:30]}  Ne6 {[%clk 0:00:34]} 32. c6 {[%clk 0:01:30]}  g6 {[%clk 0:00:33]} 33. Qd2 {[%clk 0:01:25]}  Kg7 {[%clk 0:00:19]} 34. c7 {[%clk 0:01:24]}  Qf6 {[%clk 0:00:19]} 35. c8=Q {[%clk 0:01:22]}  Ng5 {[%clk 0:00:19]} 36. Qg4 {[%clk 0:01:18]}  Ne4 {[%clk 0:00:17]} 37. Qxe4 {[%clk 0:01:15]}  dxe4 {[%clk 0:00:18]} 38. Re1 {[%clk 0:01:15]}  Qf3 {[%clk 0:00:17]} 39. Qe2 {[%clk 0:01:13]}  Qf5 {[%clk 0:00:14]} 40. Rbd1 {[%clk 0:01:12]}  Bc5 {[%clk 0:00:14]} 41. Rf1 {[%clk 0:01:10]}  Qe6 {[%clk 0:00:10]} 42. Qb2+ {[%clk 0:01:09]}  Kh6 {[%clk 0:00:10]} 43. Qc1+ {[%clk 0:01:09]}  Kh5 {[%clk 0:00:08]} 44. Qxc5+ {[%clk 0:01:09]}  Kg4 {[%clk 0:00:09]} 45. Qe3 {[%clk 0:01:09]}  Qf5 {[%clk 0:00:08]} 46. Qf4+ {[%clk 0:01:07]}  Qxf4 {[%clk 0:00:09]} 47. gxf4 {[%clk 0:01:08]}  Kxf4 {[%clk 0:00:09]} 48. Rd7 {[%clk 0:01:08]}  f5 {[%clk 0:00:10]} 49. Rxh7 {[%clk 0:01:08]}  g5 {[%clk 0:00:10]} 50. Ra1 {[%clk 0:01:08]}  Kf3 {[%clk 0:00:10]} 51. Ra3+ {[%clk 0:01:08]}  Kf4 {[%clk 0:00:10]} 52. h3 {[%clk 0:01:07]}  Ke5 {[%clk 0:00:10]} 53. Ra5+ {[%clk 0:01:06]}  Kf4 {[%clk 0:00:11]} 54. Rf7 {[%clk 0:01:06]}  Kf3 {[%clk 0:00:10]} 1-0


[Site "https://www.chess.com"]

[Event "Titled Tuesday Blitz December 7 2021"]
[White "Itkis, Boris"]
[Black "Obolentseva, Alexandra"]
[WhiteFideId "1209167"]
[BlackFideId "24153648"]
[WhiteElo "2207"]
[BlackElo "2113"]
[Result "1/2-1/2"]
[Round "09"]
[TimeControl "180+1"]
[Date "2021.12.07"]
[WhiteClock "0:00:21"]
[BlackClock "0:00:37"]

1. c4 {[%clk 0:03:00]}  Nf6 {[%clk 0:03:00]} 2. Nf3 {[%clk 0:02:59]}  g6 {[%clk 0:03:00]} 3. g3 {[%clk 0:02:59]}  Bg7 {[%clk 0:03:00]} 4. Bg2 {[%clk 0:02:59]}  O-O {[%clk 0:03:01]} 5. O-O {[%clk 0:03:00]}  d6 {[%clk 0:03:02]} 6. d4 {[%clk 0:02:59]}  c5 {[%clk 0:03:02]} 7. Nc3 {[%clk 0:02:50]}  cxd4 {[%clk 0:03:02]} 8. Nxd4 {[%clk 0:02:51]}  Nc6 {[%clk 0:03:00]} 9. Nc2 {[%clk 0:02:48]}  Be6 {[%clk 0:02:42]} 10. b3 {[%clk 0:02:42]}  Qd7 {[%clk 0:02:40]} 11. Bb2 {[%clk 0:02:38]}  Rfd8 {[%clk 0:02:39]} 12. Nd5 {[%clk 0:02:26]}  Nh5 {[%clk 0:02:21]} 13. Bxg7 {[%clk 0:02:23]}  Nxg7 {[%clk 0:02:22]} 14. Nd4 {[%clk 0:02:22]}  Nxd4 {[%clk 0:02:19]} 15. Qxd4 {[%clk 0:02:23]}  Nf5 {[%clk 0:02:09]} 16. Qd3 {[%clk 0:02:21]}  Rac8 {[%clk 0:02:07]} 17. Rac1 {[%clk 0:02:19]}  b6 {[%clk 0:01:59]} 18. Rfd1 {[%clk 0:02:17]}  Ng7 {[%clk 0:01:48]} 19. Qd2 {[%clk 0:02:11]}  Re8 {[%clk 0:01:35]} 20. Ne3 {[%clk 0:02:03]}  Bh3 {[%clk 0:01:27]} 21. Bd5 {[%clk 0:02:01]}  Nf5 {[%clk 0:01:13]} 22. Nxf5 {[%clk 0:01:41]}  Qxf5 {[%clk 0:01:11]} 23. a4 {[%clk 0:01:41]}  Qh5 {[%clk 0:01:02]} 24. Bf3 {[%clk 0:01:37]}  Bg4 {[%clk 0:01:01]} 25. Bxg4 {[%clk 0:01:33]}  Qxg4 {[%clk 0:01:02]} 26. f3 {[%clk 0:01:27]}  Qh5 {[%clk 0:00:56]} 27. Qd5 {[%clk 0:01:26]}  Qxd5 {[%clk 0:00:54]} 28. Rxd5 {[%clk 0:01:23]}  Rc5 {[%clk 0:00:55]} 29. b4 {[%clk 0:01:15]}  Rc7 {[%clk 0:00:52]} 30. e4 {[%clk 0:00:54]}  Rec8 {[%clk 0:00:51]} 31. Rd4 {[%clk 0:00:54]}  Rc6 {[%clk 0:00:49]} 32. Kf2 {[%clk 0:00:53]}  e5 {[%clk 0:00:42]} 33. b5 {[%clk 0:00:31]}  Rc5 {[%clk 0:00:41]} 34. Rxd6 {[%clk 0:00:31]}  Rxc4 {[%clk 0:00:38]} 35. Rd8+ {[%clk 0:00:25]}  Rxd8 {[%clk 0:00:39]} 36. Rxc4 {[%clk 0:00:25]}  Rd2+ {[%clk 0:00:39]} 37. Ke3 {[%clk 0:00:23]}  Ra2 {[%clk 0:00:38]} 38. h4 {[%clk 0:00:22]}  Ra3+ {[%clk 0:00:37]} 39. Ke2 {[%clk 0:00:21]}  Kg7 {[%clk 0:00:37]} 40. g4 {[%clk 0:00:21]} 1/2-1/2


[Site "https://www.chess.com"]

[Event "Titled Tuesday Blitz December 7 2021"]
[White "Jobava, Baadur"]
[Black "Xiong, Jeffery"]
[WhiteFideId "13601520"]
[BlackFideId "2047640"]
[WhiteElo "2689"]
[BlackElo "2727"]
[Result "0-1"]
[Round "09"]
[TimeControl "180+1"]
[Date "2021.12.07"]
[WhiteClock "0:00:04"]
[BlackClock "0:00:03"]

1. e4 {[%clk 0:03:00]}  c5 {[%clk 0:02:59]} 2. Nf3 {[%clk 0:02:59]}  d6 {[%clk 0:02:59]} 3. Bb5+ {[%clk 0:02:58]}  Bd7 {[%clk 0:02:59]} 4. Bxd7+ {[%clk 0:02:58]}  Nxd7 {[%clk 0:03:00]} 5. O-O {[%clk 0:02:55]}  Ngf6 {[%clk 0:03:01]} 6. Qe2 {[%clk 0:02:55]}  Rc8 {[%clk 0:03:00]} 7. a4 {[%clk 0:02:44]}  e6 {[%clk 0:02:42]} 8. Na3 {[%clk 0:02:44]}  Be7 {[%clk 0:02:42]} 9. d3 {[%clk 0:02:36]}  O-O {[%clk 0:02:42]} 10. h3 {[%clk 0:02:36]}  Re8 {[%clk 0:02:40]} 11. Re1 {[%clk 0:02:32]}  Bf8 {[%clk 0:02:38]} 12. Bg5 {[%clk 0:02:25]}  h6 {[%clk 0:02:38]} 13. Bh4 {[%clk 0:02:26]}  Qc7 {[%clk 0:02:07]} 14. Nc4 {[%clk 0:02:20]}  b6 {[%clk 0:02:02]} 15. Bg3 {[%clk 0:02:14]}  Qc6 {[%clk 0:01:59]} 16. Ne3 {[%clk 0:02:06]}  a6 {[%clk 0:01:48]} 17. b3 {[%clk 0:02:06]}  b5 {[%clk 0:01:49]} 18. Ra2 {[%clk 0:01:54]}  Nb6 {[%clk 0:01:47]} 19. axb5 {[%clk 0:01:54]}  axb5 {[%clk 0:01:48]} 20. e5 {[%clk 0:01:52]}  Nfd5 {[%clk 0:01:45]} 21. Nxd5 {[%clk 0:01:33]}  Nxd5 {[%clk 0:01:46]} 22. Qd2 {[%clk 0:01:32]}  Nb4 {[%clk 0:01:46]} 23. Raa1 {[%clk 0:01:29]}  d5 {[%clk 0:01:35]} 24. c3 {[%clk 0:01:14]}  Na6 {[%clk 0:01:35]} 25. Bf4 {[%clk 0:01:06]}  Ra8 {[%clk 0:01:35]} 26. Be3 {[%clk 0:00:54]}  Nc7 {[%clk 0:01:32]} 27. d4 {[%clk 0:00:45]}  c4 {[%clk 0:01:01]} 28. b4 {[%clk 0:00:45]}  Ra4 {[%clk 0:00:55]} 29. g4 {[%clk 0:00:44]}  Rea8 {[%clk 0:00:55]} 30. Rac1 {[%clk 0:00:43]}  Ra2 {[%clk 0:00:48]} 31. Rc2 {[%clk 0:00:40]}  Qa6 {[%clk 0:00:48]} 32. Kg2 {[%clk 0:00:33]}  Rxc2 {[%clk 0:00:48]} 33. Qxc2 {[%clk 0:00:34]}  Qa2 {[%clk 0:00:48]} 34. Qc1 {[%clk 0:00:34]}  Ra3 {[%clk 0:00:47]} 35. Nd2 {[%clk 0:00:28]}  Na8 {[%clk 0:00:44]} 36. Re2 {[%clk 0:00:20]}  Qa1 {[%clk 0:00:37]} 37. Qxa1 {[%clk 0:00:07]}  Rxa1 {[%clk 0:00:38]} 38. f4 {[%clk 0:00:08]}  Nb6 {[%clk 0:00:38]} 39. Nf3 {[%clk 0:00:06]}  Na4 {[%clk 0:00:23]} 40. Rc2 {[%clk 0:00:06]}  Be7 {[%clk 0:00:15]} 41. Bd2 {[%clk 0:00:05]}  f5 {[%clk 0:00:12]} 42. exf6 {[%clk 0:00:05]}  Bxf6 {[%clk 0:00:12]} 43. h4 {[%clk 0:00:04]}  Kf8 {[%clk 0:00:07]} 44. h5 {[%clk 0:00:04]}  Ke8 {[%clk 0:00:07]} 45. Kg3 {[%clk 0:00:05]}  Be7 {[%clk 0:00:07]} 46. g5 {[%clk 0:00:05]}  Rd1 {[%clk 0:00:07]} 47. Kg4 {[%clk 0:00:05]}  Bd6 {[%clk 0:00:07]} 48. gxh6 {[%clk 0:00:05]}  gxh6 {[%clk 0:00:08]} 49. f5 {[%clk 0:00:06]}  exf5+ {[%clk 0:00:07]} 50. Kxf5 {[%clk 0:00:07]}  Rf1 {[%clk 0:00:07]} 51. Kg4 {[%clk 0:00:07]}  Rf2 {[%clk 0:00:07]} 52. Rc1 {[%clk 0:00:06]}  Rg2+ {[%clk 0:00:07]} 53. Kf5 {[%clk 0:00:06]}  Rf2 {[%clk 0:00:07]} 54. Kg4 {[%clk 0:00:06]}  Rg2+ {[%clk 0:00:04]} 55. Kf5 {[%clk 0:00:07]}  Rf2 {[%clk 0:00:03]} 56. Ke6 {[%clk 0:00:07]}  Be7 {[%clk 0:00:02]} 57. Rg1 {[%clk 0:00:06]}  Rxf3 {[%clk 0:00:02]} 58. Rg8+ {[%clk 0:00:05]}  Rf8 {[%clk 0:00:03]} 59. Rg6 {[%clk 0:00:05]}  Nb6 {[%clk 0:00:03]} 60. Bxh6 {[%clk 0:00:05]}  Rh8 {[%clk 0:00:03]} 61. Kf5 {[%clk 0:00:05]}  Nc8 {[%clk 0:00:03]} 62. Kg4 {[%clk 0:00:05]}  Nd6 {[%clk 0:00:03]} 63. Bf4 {[%clk 0:00:05]}  Ne4 {[%clk 0:00:03]} 64. h6 {[%clk 0:00:05]}  Rh7 {[%clk 0:00:02]} 65. Kf5 {[%clk 0:00:05]}  Kf7 {[%clk 0:00:03]} 66. Rb6 {[%clk 0:00:04]}  Nxc3 {[%clk 0:00:03]} 67. Be5 {[%clk 0:00:04]}  Ne4 {[%clk 0:00:03]} 68. Rb7 {[%clk 0:00:04]}  c3 {[%clk 0:00:04]} 69. Bg7 {[%clk 0:00:04]}  Nd6+ {[%clk 0:00:03]} 0-1


[Site "https://www.chess.com"]

[Event "Titled Tuesday Blitz December 7 2021"]
[White "Kabanova, Ekaterina"]
[Black "Tarlabasi, Emirhan"]
[WhiteFideId "24112917"]
[BlackFideId "6350275"]
[WhiteElo "2164"]
[BlackElo "1949"]
[Result "1-0"]
[Round "09"]
[TimeControl "180+1"]
[Date "2021.12.07"]
[WhiteClock "0:01:13"]
[BlackClock "0:01:07"]

1. c4 {[%clk 0:03:00]}  Nf6 {[%clk 0:02:59]} 2. Nf3 {[%clk 0:03:00]}  b6 {[%clk 0:02:58]} 3. e3 {[%clk 0:02:59]}  Bb7 {[%clk 0:02:59]} 4. Be2 {[%clk 0:03:00]}  e6 {[%clk 0:02:59]} 5. Qc2 {[%clk 0:03:00]}  g6 {[%clk 0:02:59]} 6. a3 {[%clk 0:02:57]}  Bg7 {[%clk 0:02:59]} 7. b4 {[%clk 0:02:58]}  c5 {[%clk 0:02:57]} 8. Bb2 {[%clk 0:02:58]}  O-O {[%clk 0:02:56]} 9. h4 {[%clk 0:02:57]}  Nc6 {[%clk 0:02:57]} 10. b5 {[%clk 0:02:57]}  Ne7 {[%clk 0:02:56]} 11. d3 {[%clk 0:02:51]}  d5 {[%clk 0:02:56]} 12. Nbd2 {[%clk 0:02:52]}  h5 {[%clk 0:02:54]} 13. Ng5 {[%clk 0:02:46]}  Rc8 {[%clk 0:02:51]} 14. Rg1 {[%clk 0:02:39]}  Nf5 {[%clk 0:02:41]} 15. g3 {[%clk 0:02:20]}  Ng4 {[%clk 0:02:35]} 16. Bxg7 {[%clk 0:02:18]}  Kxg7 {[%clk 0:02:34]} 17. cxd5 {[%clk 0:02:09]}  exd5 {[%clk 0:02:28]} 18. Qd1 {[%clk 0:01:54]}  Ngxe3 {[%clk 0:02:18]} 19. fxe3 {[%clk 0:01:51]}  Nxe3 {[%clk 0:02:19]} 20. Qc1 {[%clk 0:01:47]}  Qf6 {[%clk 0:02:17]} 21. Ndf3 {[%clk 0:01:42]}  Qxa1 {[%clk 0:02:16]} 22. Qxa1+ {[%clk 0:01:41]}  d4 {[%clk 0:02:11]} 23. Kd2 {[%clk 0:01:41]}  a6 {[%clk 0:02:01]} 24. a4 {[%clk 0:01:39]}  a5 {[%clk 0:02:01]} 25. Qa2 {[%clk 0:01:36]}  Bd5 {[%clk 0:02:00]} 26. Qa1 {[%clk 0:01:34]}  f6 {[%clk 0:01:58]} 27. Nh3 {[%clk 0:01:31]}  Rfe8 {[%clk 0:01:28]} 28. Nf4 {[%clk 0:01:29]}  Bxf3 {[%clk 0:01:19]} 29. Bxf3 {[%clk 0:01:27]}  c4 {[%clk 0:01:18]} 30. Qxd4 {[%clk 0:01:21]}  Nf5 {[%clk 0:01:11]} 31. Qxb6 {[%clk 0:01:14]}  Red8 {[%clk 0:01:10]} 32. Ne6+ {[%clk 0:01:13]}  Kh6 {[%clk 0:01:07]} 33. Nxd8 {[%clk 0:01:14]}  c3+ {[%clk 0:01:07]} 34. Kc2 {[%clk 0:01:13]} 1-0


[Site "https://www.chess.com"]